Workbook

Sheet 利用方法
A1: 出来高内訳書書式の利用方法(社内書式)
B3: １．様式について
C5: この出来内訳書は契約書(注文書発行済又は発行予定)の工事費等を請求するときに、必要に応じて
C6: 請求書に添付して下さい。
B8: ２．様式の構成について
C10: 出来高調書用紙は、提出用・控え用を兼ねています。
B12: ３．記入方法について
C14: この出来高内訳書はマクロを使用しています。マクロを有効にしてお使い下さい。
C16: 別紙「記入例」を参考にして作成して下さい。
C18: 黄色のセルは手入力項目、水色のセルは自動計算項目です。
C19: 自動計算項目は上書き修正可です。必要に応じて数式を変更して下さい。
C20: ※ SUM等関数を使用したい場合は、シートの保護を解除してから使用して下さい。
C22: [契約金額]には注文書等の契約数量・金額を記入して下さい。
C24: [出来高金額]の[前回迄]には前月までの累計出来高を（初回の場合は入力不要）、[今回]には当
C25: 月分出来高を入力してください。[累計]は自動で計算されます。
C27: 入力行が足りない場合は、最終行の次の行（２ページ目ならＡ２８セル、３ページ目ならＡ４８セル）を
C28: 選択して「ページ追加」ボタンをクリックして追加して下さい。
C30: 追加したページが不要となった場合は「ページ削除」ボタンでページを削除して下さい。
C31: ただし、「ページ削除」ボタンは２ページ目以降全ページを削除しますので、任意のページを削除
C32: したい場合は、手動で削除して下さい。
C34: [データクリア]ボタンを押すと入力したデータがクリアされ、自動計算項目が初期状態に戻ります。

Sheet 記入例
B1: ＊＊＊＊＊＊＊＊ | G1: 工 事
G3: 第 | H3: 2 | I3: 回 工 事 出 来 高 内 訳 書 （ | N3: Ｈ２７．８ | P3: 月分）
A5: 工 事 種 別 | E5: 契約金額 | J5: 工事出来高 | T5: 備 考
E6: 単位 | F6: 数量 | G6: 単価 | H6: 金 額 | J6: 前回迄 | L6: 今 回 | N6: 累 計 | R6: 残 高
J7: 数量 | K7: 金 額 | L7: 数量 | M7: 金 額 | N7: 数量 | O7: 金 額 | Q7: ％ | R7: 数量 | S7: 金 額
A8: 道路改良 | H8: =IF(F8="","",ROUND(F8*$G8,0)) ->  | K8: =IF(J8="","",ROUND($G8*J8,0)) ->  | M8: =IF(L8="","",ROUND($G8*L8,0)) ->  | N8: =SUM(J8,L8) -> 0 | O8: =SUM(K8,M8) -> 0 | Q8: =IF(O8=0,0,O8/H8*100) -> 0 | R8: =F8-N8 -> 0 | S8: =IF(H8="",0,H8-O8) -> 0
B9: 道路土工 | K9: =IF(J9="","",ROUND($G9*J9,0)) ->  | M9: =IF(L9="","",ROUND($G9*L9,0)) ->  | N9: 0 | O9: =SUM(K9,M9) -> 0 | Q9: =IF(O9=0,0,O9/H9*100) -> 0 | R9: 0 | S9: =IF(H9="",0,H9-O9) -> 0
C10: 掘削工 | E10: ㎥ | F10: 1000 | G10: 180 | H10: 180000 | J10: 300 | K10: 54000 | L10: 300 | M10: 54000 | N10: 600 | O10: =SUM(K10,M10) -> 108000 | Q10: =IF(O10=0,0,O10/H10*100) -> 60 | R10: 400 | S10: =IF(H10="",0,H10-O10) -> 72000
C11: 路体盛土工 | E11: ㎥ | F11: 3500 | G11: 120 | H11: 420000 | J11: 0 | K11: 0 | L11: 1000 | M11: 120000 | N11: 1000 | O11: =SUM(K11,M11) -> 120000 | Q11: =IF(P11=0,0,P11/H11*100) -> 0 | R11: 2500 | S11: =IF(H11="",0,H11-P11) -> 420000
C12: 〃 土砂等積込・運搬 | E12: ㎥ | F12: 2500 | G12: 800 | H12: 2000000 | J12: 0 | K12: 0 | L12: 700 | M12: 560000 | N12: 700 | O12: 560000 | Q12: 0 | R12: 1800 | S12: 2000000
C13: 路床盛土工 | E13: ㎥ | F13: 1500 | G13: 180 | H13: 270000 | J13: 1000 | K13: 180000 | L13: 500 | M13: 90000 | N13: 1500 | O13: 270000 | Q13: 0 | R13: 0 | S13: 270000
C14: 〃 土砂等積込・運搬 | E14: ㎥ | F14: 1500 | G14: 800 | H14: 1200000 | J14: 1000 | K14: 800000 | L14: 500 | M14: 400000 | N14: 1500 | O14: 1200000 | Q14: 0 | R14: 0 | S14: 1200000
C15: 法面整形工 | E15: ㎡ | F15: 400 | G15: 340 | H15: 136000 | J15: 0 | K15: 0 | L15: 0 | M15: 0 | N15: 0 | O15: 0 | Q15: 0 | R15: 400 | S15: 136000
B16: 舗装工 | N16: 0 | O16: 0 | Q16: 0 | R16: 0 | S16: 0
C17: アスファルト舗装工 | N17: 0 | O17: 0 | Q17: 0 | R17: 0 | S17: 0
D18: 下層路盤 | E18: ㎡ | F18: 1800 | G18: 1300 | H18: 2340000 | J18: 0 | K18: 0 | L18: 0 | M18: 0 | N18: 0 | O18: 0 | Q18: 0 | R18: 1800 | S18: 2340000 | T18: ＲＣ４０
D19: 路盤 | E19: ㎡ | F19: 250 | G19: 800 | H19: 200000 | J19: 0 | K19: 0 | L19: 0 | M19: 0 | N19: 0 | O19: 0 | Q19: 0 | R19: 250 | S19: 200000 | T19: ＲＣ４０
N20: 0 | O20: 0 | Q20: 0 | R20: 0 | S20: 0
A21: 直接工事費計 | H21: =SUM(H8:I20) -> 6746000 | K21: =SUM(K8:K20) -> 1034000 | M21: =SUM(M8:M20) -> 1224000 | N21: 0 | O21: 2258000 | Q21: 0 | R21: 0 | S21: 6746000
A22: 共通仮設費 | H22: =H21*10% -> 674600 | K22: =K21*10% -> 103400 | M22: =M21*10% -> 122400 | N22: 0 | O22: 225800 | Q22: 0 | R22: 0 | S22: 674600
A23: 諸経費 | H23: 379400 | K23: 62600 | M23: 53600 | N23: 0 | O23: 116200 | Q23: 0 | R23: 0 | S23: 379400
A24: 工事費計 | H24: =SUM(H21:I23) -> 7800000 | K24: =SUM(K21:K23) -> 1200000 | M24: =SUM(M21:M23) -> 1400000 | N24: 0 | O24: 2600000 | Q24: 0 | R24: 0 | S24: 7800000
H25: =IF(F25="","",ROUND(F25*$G25,0)) ->  | K25: =IF(J25="","",ROUND($G25*J25,0)) ->  | M25: =IF(L25="","",ROUND($G25*L25,0)) ->  | N25: 0 | O25: =SUM(K25,M25) -> 0 | Q25: =IF(O25=0,0,O25/H25*100) -> 0 | R25: 0 | S25: =IF(H25="",0,H25-O25) -> 0
H26: =IF(F26="","",ROUND(F26*$G26,0)) ->  | K26: =IF(J26="","",ROUND($G26*J26,0)) ->  | M26: =IF(L26="","",ROUND($G26*L26,0)) ->  | N26: 0 | O26: =SUM(K26,M26) -> 0 | Q26: =IF(O26=0,0,O26/H26*100) -> 0 | R26: 0 | S26: =IF(H26="",0,H26-O26) -> 0
H27: =IF(F27="","",ROUND(F27*$G27,0)) ->  | K27: =IF(J27="","",ROUND($G27*J27,0)) ->  | M27: =IF(L27="","",ROUND($G27*L27,0)) ->  | N27: 0 | O27: =SUM(K27,M27) -> 0 | Q27: =IF(O27=0,0,O27/H27*100) -> 0 | R27: 0 | S27: =IF(H27="",0,H27-O27) -> 0

Sheet 出来高内訳書
G1: 工 事
G3: 第 | I3: 回 工 事 出 来 高 内 訳 書 （ | P3: 月分）
A5: 工 事 種 別 | E5: 契約金額 | J5: 工事出来高 | T5: 備 考
E6: 単位 | F6: 数量 | G6: 単価 | H6: 金 額 | J6: 前回迄 | L6: 今 回 | N6: 累 計 | R6: 残 高
J7: 数量 | K7: 金 額 | L7: 数量 | M7: 金 額 | N7: 数量 | O7: 金 額 | Q7: ％ | R7: 数量 | S7: 金 額
H8: =IF(F8="","",ROUND(F8*G8,0)) ->  | K8: =IF(J8="","",ROUND($G8*J8,0)) ->  | M8: =IF(L8="","",ROUND($G8*L8,0)) ->  | N8: =SUM(J8,L8) -> 0 | O8: =SUM(K8,M8) -> 0 | P8: =SUM(L8,N8) -> 0 | Q8: =IF(O8=0,0,O8/H8*100) -> 0 | R8: =F8-N8 -> 0 | S8: =IF(H8="",0,H8-O8) -> 0
H9: =IF(F9="","",ROUND(F9*G9,0)) ->  | K9: =IF(J9="","",ROUND($G9*J9,0)) ->  | M9: =IF(L9="","",ROUND($G9*L9,0)) ->  | N9: =SUM(J9,L9) -> 0 | O9: =SUM(K9,M9) -> 0 | P9: =SUM(L9,N9) -> 0 | Q9: =IF(O9=0,0,O9/H9*100) -> 0 | R9: =F9-N9 -> 0 | S9: =IF(H9="",0,H9-O9) -> 0
N10: 0 | O10: 0 | P10: 0 | Q10: 0 | R10: 0 | S10: 0
N11: 0 | O11: 0 | P11: 0 | Q11: 0 | R11: 0 | S11: 0
N12: 0 | O12: 0 | P12: 0 | Q12: 0 | R12: 0 | S12: 0
N13: 0 | O13: 0 | P13: 0 | Q13: 0 | R13: 0 | S13: 0
N14: 0 | O14: 0 | P14: 0 | Q14: 0 | R14: 0 | S14: 0
N15: 0 | O15: 0 | P15: 0 | Q15: 0 | R15: 0 | S15: 0
N16: 0 | O16: 0 | P16: 0 | Q16: 0 | R16: 0 | S16: 0
N17: 0 | O17: 0 | P17: 0 | Q17: 0 | R17: 0 | S17: 0
N18: 0 | O18: 0 | P18: 0 | Q18: 0 | R18: 0 | S18: 0
N19: 0 | O19: 0 | P19: 0 | Q19: 0 | R19: 0 | S19: 0
N20: 0 | O20: 0 | P20: 0 | Q20: 0 | R20: 0 | S20: 0
N21: 0 | O21: 0 | P21: 0 | Q21: 0 | R21: 0 | S21: 0
N22: 0 | O22: 0 | P22: 0 | Q22: 0 | R22: 0 | S22: 0
N23: 0 | O23: 0 | P23: 0 | Q23: 0 | R23: 0 | S23: 0
N24: 0 | O24: 0 | P24: 0 | Q24: 0 | R24: 0 | S24: 0
N25: 0 | O25: 0 | P25: 0 | Q25: 0 | R25: 0 | S25: 0
N26: 0 | O26: 0 | P26: 0 | Q26: 0 | R26: 0 | S26: 0
N27: 0 | O27: 0 | P27: 0 | Q27: 0 | R27: 0 | S27: 0
